bitfinex-derivatives/quotes_SOLF0:USTF0_20250623
["timestamp","ask_amount","ask_price","bid_price","bid_amount"]
[1750666588701,7.4215,134.71,134.68,7.4228]
[1750666588881,7.4218,134.7,134.67,5.24002332]
[1750666589292,7.4218,134.7,134.67,12.66312332]
[1750666590093,7.4224,134.69,134.67,5.24002332]
[1750666590490,7.422,134.7,134.67,5.24002332]
[1750666590990,3.04276343,134.73,134.67,5.24002332]
[1750666591397,46.77866343,134.74,134.67,5.24002332]
[1750666591692,3.04276343,134.73,134.69,5.24002332]
[1750666592700,7.4211,134.72,134.69,5.24002332]
[1750666593301,7.4213,134.71,134.69,5.24002332]
[1750666593701,3.04276343,134.73,134.65,38.82]
[1750666593896,3.04276343,134.73,134.67,5.24002332]
[1750666593897,7.4222,134.7,134.67,5.24002332]
[1750666594200,3.04276343,134.72,134.65,44.06002332]
[1750666594395,3.04276343,134.72,134.65,5.24002332]
[1750666594802,3.04276343,134.71,134.65,5.24002332]
[1750666595007,38.8,134.7,134.65,5.24002332]
[1750666595705,7.4227,134.69,134.65,12.66452332]
[1750666596203,38.8,134.7,134.65,5.24002332]
[1750666596400,46.222,134.7,134.66,7.4236]
[1750666597303,7.4224,134.69,134.66,7.4236]
[1750666597900,7.4224,134.69,134.65,12.66432332]
[1750666600803,38.8,134.7,134.64,12.66492332]
[1750666601006,7.85261027,134.69,134.64,5.24002332]
[1750666601211,3.05442879,134.68,134.64,5.24002332]
[1750666601408,7.4241,134.66,134.64,5.24002332]
[1750666601613,3.05221971,134.68,134.64,5.24002332]
[1750666601814,15.5844703,134.69,134.63,5.24002332]
[1750666602014,7.4238,134.67,134.63,12.66562332]
[1750666602521,15.5844703,134.69,134.64,7.4247]
[1750666602522,10.47541951,134.68,134.64,7.4247]
[1750666603021,3.05231951,134.68,134.64,12.66472332]
[1750666603226,5.54624698,134.68,134.64,12.66472332]
[1750666603426,4.7982,134.69,134.64,12.66472332]
[1750666603724,7.4235,134.67,134.64,12.66472332]
[1750666604324,4.7982,134.69,134.64,12.66472332]
[1750666604325,7.4232,134.68,134.64,12.66472332]
[1750666604626,4.7982,134.69,134.64,12.66472332]
[1750666604819,7.4237,134.67,134.64,5.24002332]
[1750666606125,7.4237,134.67,134.64,12.66512332]
[1750666606323,7.4237,134.67,134.64,5.24002332]
[1750666606524,10.48511685,134.66,134.64,5.24002332]
[1750666606731,7.424,134.66,134.64,5.24002332]
[1750666607025,7.424,134.66,134.62,38.82]
[1750666607325,10.48602444,134.65,134.62,44.06002332]
[1750666607521,5.56244981,134.66,134.62,51.48582332]
[1750666607827,3.05795753,134.65,134.62,12.66582332]
[1750666608128,5.56017821,134.67,134.62,12.66582332]
[1750666608327,8.61814406,134.66,134.62,12.66582332]
[1750666608524,3.05796585,134.65,134.6,9.8768]
[1750666608823,38.74,134.66,134.61,5.24002332]
[1750666609025,38.74,134.66,134.63,5.24002332]
[1750666609224,38.74,134.66,134.63,12.66542332]
[1750666609626,13.06118522,134.68,134.65,5.24002332]
[1750666609824,8.61690535,134.67,134.65,5.24002332]
[1750666610024,7.4231,134.68,134.65,5.24002332]
[1750666610223,3.05735264,134.67,134.65,5.24002332]
[1750666610422,7.4231,134.68,134.65,5.24002332]
[1750666610623,3.0572803,134.67,134.65,12.66422332]
[1750666610818,7.4235,134.67,134.65,5.24002332]
[1750666611315,10.48156834,134.66,134.64,5.24002332]
[1750666611523,5.55944362,134.67,134.62,5.24002332]
[1750666611719,7.4252,134.64,134.62,5.24002332]
[1750666612317,7.4255,134.64,134.6,12.66712332]
[1750666614530,7.4255,134.64,134.61,7.4267]
[1750666615827,7.4257,134.63,134.6,12.66712332]
[1750666616030,7.4257,134.63,134.59,38.74]
[1750666616031,38.74,134.65,134.59,43.98002332]
[1750666616224,3.05548614,134.64,134.59,5.24002332]
[1750666616423,7.4252,134.64,134.6,7.4269]
[1750666616933,43.98002332,134.65,134.59,5.24002332]
[1750666617126,7.426,134.63,134.59,12.66752332]
[1750666617524,7.426,134.63,134.6,7.4269]
[1750666617722,7.4253,134.64,134.61,5.24002332]
[1750666618426,7.4253,134.64,134.61,12.66662332]
[1750666619426,7.4257,134.63,134.61,5.24002332]
[1750666620728,38.74,134.65,134.59,5.24002332]
[1750666620939,3.04894361,134.64,134.59,5.24002332]
[1750666621136,38.74,134.65,134.59,5.24002332]
[1750666621427,3.04790943,134.64,134.56,41.199]
[1750666621628,5.24002332,134.64,134.58,5.24002332]
[1750666621836,7.429,134.57,134.56,5.24002332]
[1750666622029,5.24002332,134.6,134.52,38.74]
[1750666622224,5.24002332,134.58,134.49,50.23865284]
[1750666622426,5.24002332,134.56,134.5,5.24002332]
[1750666622626,5.24002332,134.56,134.48,7.52082332]
[1750666622829,5.24002332,134.54,134.48,5.24002332]
[1750666623025,38.74,134.53,134.48,5.24002332]
[1750666623431,5.24002332,134.52,134.47,4.34876943]
[1750666624435,7.4332,134.5,134.47,4.34876943]
[1750666625028,7.4324,134.51,134.47,4.34876943]
[1750666625428,5.24002332,134.52,134.47,4.34876943]
[1750666625939,7.4332,134.5,134.47,4.34876943]
[1750666626340,5.24002332,134.52,134.47,4.34876943]
[1750666626538,7.4325,134.51,134.47,4.34876943]
[1750666626837,5.24002332,134.52,134.47,4.34876943]
[1750666627845,7.4329,134.5,134.47,4.34876943]
[1750666628132,38.74,134.53,134.48,5.24002332]
[1750666628336,38.74,134.53,134.5,5.24002332]
[1750666628537,38.74,134.53,134.49,5.24002332]
[1750666628733,7.4323,134.51,134.47,17.02289275]
[1750666628936,38.74,134.53,134.47,9.58879275]
[1750666629135,5.24002332,134.52,134.47,9.58879275]
[1750666629441,5.24002332,134.52,134.47,4.34876943]
[1750666630034,7.4333,134.5,134.47,4.34876943]
[1750666630242,5.24002332,134.52,134.47,4.34876943]
[1750666631335,7.4331,134.5,134.47,4.34876943]
[1750666631530,43.98002332,134.53,134.47,9.58879275]
[1750666632142,5.24002332,134.51,134.47,4.34876943]
[1750666633939,7.4338,134.49,134.47,4.34876943]
[1750666634145,46.2138,134.49,134.47,4.34876943]
[1750666634644,7.4339,134.48,134.47,4.34876943]
[1750666636242,38.78,134.49,134.47,4.34876943]
[1750666636745,7.4339,134.48,134.47,6.943e-05]
[1750666639842,46.2135,134.49,134.47,6.943e-05]
[1750666640149,38.78,134.49,134.47,6.943e-05]
[1750666640341,44.02002332,134.49,134.47,6.943e-05]
[1750666641640,7.4339,134.48,134.47,6.943e-05]
[1750666653550,38.78,134.49,134.47,6.943e-05]
[1750666653754,5.24002332,134.48,134.47,6.943e-05]
[1750666654251,12.67392332,134.48,134.47,6.943e-05]
[1750666656456,7.4375,134.42,134.38,9.8746]
[1750666656754,7.4375,134.42,134.39,5.24002332]
[1750666657353,38.76,134.44,134.39,5.24002332]
[1750666657652,38.76,134.44,134.41,5.24002332]
[1750666658049,7.4368,134.43,134.39,5.24002332]
[1750666658660,7.4373,134.42,134.39,5.24002332]
[1750666659949,7.4377,134.41,134.39,5.24002332]
[1750666660156,38.76,134.44,134.39,5.24002332]
[1750666660555,38.76,134.44,134.39,12.67882332]
[1750666661250,38.76,134.44,134.41,5.24002332]
[1750666662753,44.19067854,134.47,134.43,5.24002332]
[1750666662953,38.76,134.47,134.43,5.24002332]
[1750666663351,38.76,134.47,134.45,5.24002332]
[1750666663551,5.43117915,134.48,134.45,5.24002332]
[1750666663853,38.76,134.5,134.47,5.24002332]
[1750666664651,7.4323,134.51,134.49,5.24002332]
[1750666665860,3.02768921,134.5,134.49,5.24002332]
[1750666666559,3.02719246,134.5,134.49,5.24002332]
[1750666667459,3.0271914,134.5,134.49,5.24002332]
[1750666668960,38.76,134.53,134.45,38.76]
[1750666669161,38.76,134.53,134.47,5.24002332]
[1750666669461,7.4326,134.51,134.47,12.67412332]
[1750666669662,38.76,134.53,134.47,12.67412332]
[1750666670057,7.4325,134.51,134.47,12.67412332]
[1750666670861,7.4328,134.5,134.47,12.67412332]
[1750666671863,7.4325,134.51,134.47,12.67412332]
[1750666672359,38.76,134.53,134.47,12.67412332]
[1750666673066,44.00002332,134.53,134.46,7.4348]
[1750666673263,44.00002332,134.53,134.47,5.24002332]
[1750666673665,7.4331,134.5,134.47,5.24002332]
[1750666674364,7.4333,134.49,134.47,5.24002332]
[1750666675561,38.76,134.53,134.45,38.76]
[1750666675762,44.00002332,134.53,134.46,5.24002332]
[1750666676167,7.4331,134.5,134.46,12.67502332]
[1750666676367,44.00002332,134.53,134.46,12.67502332]
[1750666676763,7.4331,134.5,134.46,12.67502332]
[1750666677468,7.4334,134.49,134.46,12.67502332]
[1750666677666,7.4334,134.49,134.46,5.24002332]
[1750666680470,44.00002332,134.53,134.46,5.24002332]
[1750666680873,44.00002332,134.53,134.46,12.67492332]
[1750666681466,7.4331,134.5,134.46,12.67492332]
[1750666681765,5.46296466,134.52,134.48,5.24002332]
[1750666681971,3.03607219,134.51,134.48,5.24002332]
[1750666682170,10.46917219,134.5,134.48,5.24002332]
[1750666682367,5.46296466,134.52,134.48,5.24002332]
[1750666682573,7.4337,134.49,134.44,2.4727]
[1750666682760,3.0363617,134.5,134.46,5.24002332]
[1750666682962,5.46230561,134.52,134.48,5.24002332]
[1750666683165,10.46895337,134.51,134.48,5.24002332]
[1750666683372,7.4326,134.51,134.48,5.24002332]
[1750666683571,5.46230561,134.52,134.48,5.24002332]
[1750666683768,44.22230561,134.53,134.5,5.24002332]
[1750666683970,3.03598167,134.52,134.5,5.24002332]
[1750666684174,38.76,134.53,134.5,5.24002332]
[1750666684374,3.03762451,134.52,134.5,5.24002332]
[1750666684576,38.76,134.53,134.5,5.24002332]
[1750666684777,3.03760278,134.52,134.5,5.24002332]
[1750666684979,44.23282785,134.53,134.5,5.24002332]
[1750666685172,3.03768988,134.52,134.5,5.24002332]
[1750666685373,38.76,134.53,134.5,12.67272332]
[1750666685574,3.03717081,134.52,134.5,12.67272332]
[1750666685770,38.76,134.53,134.5,12.67272332]
[1750666685971,10.46887081,134.52,134.5,5.24002332]
[1750666686178,7.4317,134.52,134.5,5.24002332]
[1750666687386,7.4323,134.51,134.49,5.24002332]
[1750666687582,44.23153945,134.53,134.48,5.24002332]
[1750666687788,3.0370125,134.52,134.48,5.24002332]
[1750666687982,44.23153945,134.53,134.48,5.24002332]
[1750666687983,10.4694125,134.51,134.48,5.24002332]
[1750666688187,7.4324,134.51,134.48,5.24002332]
[1750666689085,7.4319,134.52,134.48,12.67382332]
[1750666689389,3.0405082,134.51,134.48,12.67382332]
[1750666689590,38.76,134.53,134.48,12.67382332]
[1750666689890,7.4323,134.51,134.48,12.67382332]
[1750666690795,44.23479873,134.53,134.5,5.24002332]
[1750666691105,38.76,134.53,134.5,5.24002332]
[1750666691293,46.1911,134.53,134.5,12.67252332]
[1750666691487,38.76,134.53,134.5,5.24002332]
[1750666691789,7.4318,134.52,134.5,5.24002332]
[1750666693291,46.1914,134.53,134.5,12.67272332]
[1750666693595,38.76,134.53,134.5,5.24002332]
[1750666693996,38.76,134.53,134.51,7.4321]
[1750666694398,7.4311,134.54,134.51,7.4321]
[1750666695303,7.4311,134.53,134.5,12.67252332]
[1750666695995,5.47386136,134.54,134.5,5.24002332]
[1750666696201,3.03809875,134.53,134.5,5.24002332]
[1750666696400,5.47386136,134.54,134.5,5.24002332]
[1750666696600,10.46964977,134.53,134.5,5.24002332]
[1750666696801,7.4315,134.53,134.5,5.24002332]
[1750666697396,7.4315,134.53,134.5,12.67272332]
[1750666698202,7.4315,134.53,134.5,5.24002332]
[1750666698703,7.4317,134.52,134.5,5.24002332]
[1750666699801,7.4314,134.53,134.5,5.24002332]
[1750666700703,5.47335106,134.54,134.5,5.24002332]
[1750666700899,3.04065142,134.53,134.5,5.24002332]
[1750666701098,5.47335106,134.54,134.5,5.24002332]
[1750666701400,7.432,134.52,134.5,5.24002332]
[1750666702494,7.4314,134.53,134.5,5.24002332]
[1750666703603,7.4317,134.52,134.5,5.24002332]
[1750666705301,7.4317,134.52,134.5,12.67272332]
[1750666705607,7.4317,134.52,134.5,5.24002332]
[1750666706505,11.71998458,134.55,134.5,5.24002332]
[1750666706705,14.1433938,134.54,134.5,5.24002332]
[1750666706902,8.52945085,134.53,134.5,5.24002332]
[1750666707104,3.04514322,134.52,134.5,5.24002332]
[1750666707404,5.48429157,134.53,134.5,5.24002332]
[1750666707600,3.04513488,134.52,134.5,5.24002332]
[1750666707903,7.4321,134.52,134.5,5.24002332]
[1750666708097,5.48438891,134.53,134.5,5.24002332]
[1750666708295,3.04624891,134.52,134.5,12.67262332]
[1750666708504,7.4314,134.53,134.5,12.67262332]
[1750666708705,3.04798341,134.52,134.5,12.67262332]
[1750666708910,7.4314,134.53,134.5,12.67262332]
[1750666709207,3.04798341,134.52,134.5,12.67262332]
[1750666709400,7.4314,134.53,134.5,12.67262332]
[1750666709600,3.04797506,134.52,134.5,12.67262332]
[1750666709801,7.4314,134.53,134.5,12.67262332]
[1750666709999,3.04789577,134.52,134.51,7.4322]
[1750666710199,3.04789577,134.52,134.5,5.24002332]
[1750666710398,7.4314,134.53,134.5,5.24002332]
[1750666710600,3.04783566,134.52,134.5,5.24002332]
[1750666710905,7.4314,134.53,134.5,12.67222332]
[1750666711100,3.04783597,134.52,134.5,12.67222332]
[1750666711301,7.4314,134.53,134.5,12.67222332]
[1750666711506,3.0478177,134.52,134.5,12.67222332]
[1750666711707,7.4314,134.53,134.5,12.67222332]
[1750666711905,3.04773654,134.52,134.5,12.67222332]
[1750666712115,7.4314,134.53,134.5,12.67222332]
[1750666712308,3.04773654,134.52,134.5,12.67222332]
[1750666712505,7.4314,134.53,134.5,12.67222332]
[1750666712706,3.04773654,134.52,134.5,12.67222332]
[1750666713009,13.04776302,134.54,134.51,7.4322]
[1750666713310,3.04753549,134.53,134.5,5.24002332]
[1750666713608,3.04753549,134.52,134.5,5.24002332]
[1750666713811,7.4311,134.53,134.5,12.67242332]
[1750666714010,3.04739378,134.52,134.5,12.67242332]
[1750666714216,7.4311,134.53,134.5,12.67242332]
[1750666714510,3.04734824,134.52,134.5,12.67242332]
[1750666714713,7.4311,134.53,134.5,7.4324]
[1750666714909,3.04645122,134.52,134.5,12.67242332]
[1750666715109,7.4311,134.53,134.5,12.67242332]
[1750666715407,3.04642071,134.52,134.5,12.67242332]
[1750666715610,7.4311,134.53,134.5,12.67242332]
[1750666715810,3.04640213,134.52,134.5,12.67242332]
[1750666716009,7.4311,134.53,134.5,12.67242332]
[1750666716205,3.04640213,134.52,134.5,12.67242332]
[1750666716408,7.4311,134.53,134.5,12.67242332]
[1750666716607,3.04637151,134.52,134.5,12.67242332]
[1750666716808,7.4311,134.53,134.5,12.67242332]
[1750666717008,3.04623555,134.52,134.5,12.67242332]
[1750666717206,7.4311,134.53,134.5,12.67242332]
[1750666717410,3.04618907,134.52,134.5,12.67242332]
[1750666717611,7.4311,134.53,134.5,12.67242332]
[1750666717914,3.04619772,134.52,134.51,5.24002332]
[1750666718113,3.04619772,134.52,134.51,12.67222332]
[1750666719313,7.4308,134.54,134.51,12.67222332]
[1750666719501,3.04610396,134.53,134.51,12.67222332]
[1750666719705,7.4308,134.54,134.51,12.67222332]
[1750666719907,3.04609562,134.53,134.51,12.67222332]
[1750666720215,7.4312,134.53,134.51,5.24002332]
[1750666722415,7.4308,134.54,134.51,12.67212332]
[1750666722717,3.04773156,134.53,134.51,12.67212332]
[1750666722918,7.4308,134.54,134.51,12.67212332]
[1750666723118,3.04772322,134.53,134.51,12.67212332]
[1750666723419,7.4308,134.54,134.51,12.67212332]
[1750666723619,3.04821512,134.53,134.51,12.67212332]
[1750666723814,3.04837214,134.52,134.51,12.67212332]
[1750666724516,7.4308,134.54,134.51,12.67212332]
[1750666724718,3.04909512,134.53,134.51,12.67212332]
[1750666725021,7.4308,134.54,134.51,12.67212332]
[1750666725224,6.83998458,134.58,134.53,5.24002332]
[1750666725417,5.61421801,134.59,134.57,5.24002332]
[1750666725614,11.10278935,134.58,134.57,5.24002332]
[1750666726119,5.48857134,134.58,134.57,5.24002332]
[1750666726321,12.91687134,134.58,134.57,5.24002332]
[1750666726614,18.53295991,134.58,134.57,5.24002332]
[1750666727424,7.4283,134.58,134.57,5.24002332]
[1750666727619,12.91879965,134.58,134.57,5.24002332]
[1750666728924,5.49049965,134.58,134.57,5.24002332]
[1750666729828,7.4281,134.59,134.57,5.24002332]
[1750666730418,13.0337241,134.6,134.57,5.24002332]
[1750666730613,5.48670055,134.59,134.57,5.24002332]
[1750666730818,5.6062241,134.6,134.57,5.24002332]
[1750666731019,5.48658578,134.59,134.57,5.24002332]
[1750666731221,38.66,134.62,134.57,5.24002332]
[1750666731423,38.66,134.62,134.59,5.24002332]
[1750666731717,46.0865,134.62,134.59,5.24002332]
[1750666732423,46.0865,134.62,134.59,12.66782332]
[1750666733321,5.44352945,134.63,134.61,5.24002332]
[1750666733520,45.7955,134.65,134.61,5.24002332]
[1750666733521,5.44338952,134.64,134.61,5.24002332]
[1750666733721,51.23888952,134.65,134.61,5.24002332]
[1750666733924,7.4254,134.64,134.61,5.24002332]
[1750666734316,7.4254,134.64,134.61,12.66652332]
[1750666735020,45.7955,134.65,134.6,5.24002332]
[1750666735620,7.4265,134.62,134.6,5.24002332]
[1750666737030,45.7955,134.65,134.6,12.66712332]
[1750666737529,7.4257,134.63,134.6,12.66712332]
[1750666741229,7.4253,134.64,134.61,7.4266]
[1750666741435,38.6,134.65,134.62,5.24002332]
[1750666741830,41.55498995,134.68,134.62,5.24002332]
[1750666742232,7.4249,134.65,134.62,12.66592332]
[1750666742432,41.55498995,134.68,134.62,5.24002332]
[1750666742637,5.24002332,134.67,134.62,5.24002332]
[1750666742837,7.4254,134.64,134.62,5.24002332]
[1750666743345,5.24002332,134.67,134.62,5.24002332]
[1750666743540,7.4249,134.65,134.62,5.24002332]
[1750666743741,5.24002332,134.67,134.62,5.24002332]
[1750666744538,7.4252,134.64,134.62,5.24002332]
[1750666745538,5.24002332,134.67,134.6,12.66702332]
[1750666746133,5.24002332,134.67,134.6,5.24002332]
[1750666746337,5.24002332,134.65,134.6,5.24002332]
[1750666746536,38.6,134.64,134.6,5.24002332]
[1750666746733,7.4267,134.61,134.6,5.24002332]
[1750666746938,43.4308,134.64,134.58,5.24002332]
[1750666747137,7.4271,134.61,134.58,5.24002332]
[1750666750643,7.4273,134.6,134.57,7.4287]
[1750666750843,7.4273,134.6,134.57,12.66872332]
[1750666753046,7.427,134.61,134.57,12.66872332]
[1750666753348,7.427,134.61,134.58,7.4282]
[1750666753646,7.4264,134.62,134.59,5.24002332]
[1750666753842,7.4264,134.62,134.55,43.3306]
[1750666754039,45.8146,134.64,134.58,5.24002332]
[1750666754645,7.4271,134.61,134.58,5.24002332]
[1750666756348,7.4273,134.6,134.58,5.24002332]
[1750666756552,5.24002332,134.63,134.57,5.24002332]
[1750666757653,7.4278,134.59,134.57,5.24002332]
[1750666758748,7.4284,134.58,134.56,5.24002332]
[1750666759256,38.54,134.6,134.56,5.24002332]
[1750666759451,7.4289,134.57,134.54,51.21022332]
[1750666759652,5.24002332,134.59,134.51,43.3631]
[1750666759849,10.20142332,134.59,134.53,5.24002332]
[1750666760252,10.20142332,134.59,134.52,12.67132332]
[1750666760452,12.70512332,134.59,134.52,12.67132332]
[1750666760645,7.4296,134.56,134.52,12.67132332]
[1750666764155,7.4301,134.55,134.52,12.67132332]
[1750666764853,38.54,134.56,134.5,5.24002332]
[1750666765453,41.48664789,134.56,134.5,5.24002332]
[1750666765751,5.24002332,134.55,134.5,5.24002332]
[1750666765956,5.24002332,134.55,134.48,45.9735]
[1750666766156,4.7473,134.54,134.48,12.67352332]
[1750666766355,4.7473,134.54,134.48,5.24002332]
[1750666766547,7.4325,134.51,134.48,5.24002332]
[1750666767559,7.4328,134.5,134.48,5.24002332]
[1750666768358,7.4324,134.51,134.48,5.24002332]
[1750666768756,43.78002332,134.53,134.48,5.24002332]
[1750666768953,7.4328,134.5,134.48,5.24002332]
[1750666769156,7.4328,134.5,134.47,5.24002332]
[1750666770358,7.4328,134.5,134.46,7.4346]
[1750666770551,7.4328,134.5,134.47,7.4344]
[1750666771158,38.54,134.53,134.48,5.24002332]
[1750666772156,38.54,134.53,134.52,5.24002332]
[1750666772355,38.56,134.56,134.52,12.67172332]
[1750666772557,38.56,134.56,134.54,5.24002332]
[1750666772759,45.9898,134.56,134.54,5.24002332]
[1750666775960,45.9898,134.56,134.53,5.24002332]
[1750666776364,38.56,134.56,134.53,5.24002332]
[1750666776665,38.56,134.56,134.52,5.24002332]
[1750666776964,7.4303,134.55,134.52,5.24002332]
[1750666777858,7.4303,134.55,134.52,12.67152332]
[1750666780168,45.9896,134.56,134.52,12.67152332]
[1750666780366,45.9896,134.56,134.54,5.24002332]
[1750666780570,38.56,134.56,134.54,5.24002332]
[1750666780863,7.429,134.57,134.54,5.24002332]
[1750666781265,7.429,134.57,134.54,12.67042332]
[1750666784069,7.4284,134.58,134.56,5.24002332]
[1750666786770,45.988,134.59,134.56,12.66942332]
[1750666787367,38.56,134.59,134.57,7.4288]
[1750666787566,38.56,134.62,134.58,5.24002332]
[1750666787769,38.56,134.62,134.6,5.24002332]
[1750666788071,45.9864,134.62,134.6,5.24002332]
[1750666790078,7.4267,134.61,134.6,5.24002332]
[1750666790575,45.9864,134.62,134.6,5.24002332]
[1750666790970,7.4264,134.62,134.6,5.24002332]
[1750666791675,7.4264,134.62,134.6,12.66722332]
[1750666793884,7.4258,134.63,134.6,12.66722332]
[1750666794180,41.45693921,134.65,134.6,12.66722332]
[1750666794480,45.9248,134.65,134.62,5.24002332]
[1750666794880,45.9248,134.65,134.62,12.66612332]
[1750666795276,38.5,134.65,134.62,5.24002332]
[1750666795582,7.2124,134.67,134.64,5.24002332]
[1750666795779,10.16697933,134.67,134.64,5.24002332]
[1750666796077,7.4239,134.66,134.64,5.24002332]
[1750666796580,10.1668167,134.67,134.64,5.24002332]
[1750666796781,7.2124,134.67,134.64,5.24002332]
[1750666797681,7.4245,134.65,134.64,5.24002332]
[1750666798782,7.4245,134.65,134.62,5.24002332]
[1750666798977,7.4252,134.64,134.62,5.24002332]
[1750666800780,5.24002332,134.65,134.6,5.24002332]
[1750666800980,38.48,134.64,134.6,5.24002332]
[1750666801179,7.4257,134.63,134.6,5.24002332]
[1750666801982,45.9052,134.64,134.6,5.24002332]
[1750666802182,38.48,134.64,134.62,5.24002332]
[1750666803792,38.48,134.64,134.63,5.24002332]
[1750666803983,45.6924,134.67,134.63,5.24002332]
[1750666804586,7.4243,134.66,134.63,12.66552332]
[1750666804785,43.4021,134.67,134.63,5.24002332]
[1750666805291,50.8257,134.67,134.64,7.4249]
[1750666805495,45.9036,134.67,134.65,5.24002332]
[1750666806082,7.4239,134.66,134.65,5.24002332]
[1750666807293,45.9037,134.67,134.65,5.24002332]
[1750666808196,7.4239,134.66,134.65,5.24002332]
[1750666810789,7.4246,134.65,134.63,12.66532332]
[1750666811088,38.48,134.67,134.63,12.66532332]
[1750666811593,38.48,134.67,134.63,5.24002332]
[1750666811788,38.48,134.67,134.61,5.24002332]
[1750666812183,7.4248,134.65,134.62,7.4259]
[1750666812386,38.48,134.67,134.61,5.24002332]
[1750666812695,7.4248,134.65,134.62,7.426]
[1750666814096,7.4242,134.66,134.63,12.66562332]
[1750666814495,7.4242,134.66,134.63,5.24002332]
[1750666814695,7.4245,134.65,134.63,5.24002332]
[1750666815595,38.48,134.67,134.63,5.24002332]
[1750666816290,7.4245,134.65,134.63,5.24002332]
[1750666816687,7.4245,134.65,134.59,2.3362]
[1750666816899,7.4241,134.66,134.63,5.24002332]
[1750666817398,7.4245,134.65,134.63,12.66532332]
[1750666817793,38.48,134.67,134.63,12.66532332]
[1750666818697,7.4243,134.66,134.63,5.24002332]
[1750666819196,7.4243,134.66,134.63,12.66542332]
[1750666822901,7.4245,134.65,134.63,12.66542332]
[1750666824202,7.425,134.64,134.61,12.66642332]
[1750666824390,43.72002332,134.67,134.61,5.24002332]
[1750666824795,7.4249,134.65,134.62,7.4261]
[1750666825800,7.4251,134.64,134.62,7.4261]
[1750666826302,7.4251,134.64,134.61,12.66642332]
[1750666826499,7.4257,134.63,134.61,5.24002332]
[1750666826895,7.4257,134.63,134.61,12.66672332]
[1750666827299,7.4257,134.63,134.61,5.24002332]
[1750666828399,38.4,134.63,134.55,14.03585284]
[1750666828594,43.64002332,134.63,134.57,5.24002332]
[1750666828798,2.5116,134.62,134.57,5.24002332]
[1750666830295,7.4275,134.6,134.57,5.24002332]
[1750666830603,2.5116,134.62,134.57,12.66882332]
[1750666831202,7.4269,134.61,134.57,12.66882332]
[1750666832298,7.4264,134.62,134.57,5.24002332]
[1750666832503,38.4,134.63,134.61,5.24002332]
[1750666833507,4.6611,134.66,134.61,5.24002332]
[1750666833508,43.0611,134.66,134.61,5.24002332]
[1750666833711,2.96383889,134.65,134.61,5.24002332]
[1750666833900,7.425,134.65,134.61,12.66642332]
[1750666834101,7.425,134.65,134.63,5.24002332]
[1750666834711,7.425,134.64,134.63,5.24002332]
[1750666835705,7.4247,134.65,134.63,5.24002332]
[1750666836306,7.425,134.64,134.63,5.24002332]
[1750666836707,7.4246,134.65,134.63,5.24002332]
[1750666838810,7.425,134.64,134.63,5.24002332]
[1750666839510,7.4248,134.65,134.63,5.24002332]
[1750666840712,7.4248,134.65,134.63,12.66562332]
[1750666841011,38.4,134.66,134.63,5.24002332]
[1750666841810,7.4245,134.65,134.63,5.24002332]
[1750666842714,45.8242,134.66,134.63,12.66552332]
[1750666843113,45.8242,134.66,134.63,5.24002332]
[1750666843613,45.8242,134.66,134.63,12.66532332]
[1750666845214,38.4,134.66,134.64,7.4249]
[1750666845414,38.4,134.69,134.65,5.24002332]
[1750666845615,8.43321527,134.68,134.65,5.24002332]
[1750666845807,2.97199936,134.67,134.65,12.66452332]
[1750666846007,38.4,134.69,134.65,12.66452332]
[1750666846311,7.424,134.66,134.65,5.24002332]
[1750666847614,10.39574158,134.66,134.63,12.66532332]
[1750666847818,7.424,134.66,134.63,12.66532332]
[1750666849519,50.57220703,134.69,134.63,5.24002332]
[1750666849722,8.43577401,134.68,134.63,5.24002332]
[1750666849921,8.43577401,134.67,134.63,5.24002332]
[1750666850218,2.97433157,134.66,134.63,5.24002332]
[1750666850414,2.97445165,134.65,134.63,5.24002332]
[1750666850611,7.425,134.64,134.63,5.24002332]
[1750666851415,5.46295442,134.66,134.63,5.24002332]
[1750666851618,2.97463839,134.65,134.63,5.24002332]
[1750666851818,7.4265,134.62,134.59,12.66762332]
[1750666852011,43.56002332,134.65,134.59,5.24002332]
[1750666852217,13.30798495,134.64,134.58,5.24002332]
[1750666852416,8.42468495,134.63,134.58,5.24002332]
[1750666852619,2.97342076,134.62,134.58,5.24002332]
[1750666852923,5.45161875,134.63,134.58,5.24002332]
[1750666853121,2.97049989,134.62,134.58,5.24002332]
[1750666853314,7.427,134.61,134.58,12.66832332]
[1750666855418,7.427,134.61,134.59,5.24002332]